[Event "Early-Titled-Tuesday-Blitz-May-28-2024"]
[Site "Chess.com"]
[Date "2024.05.28"]
[Round "3"]
[White "OhanyanEminChess"]
[Black "NastyaHn"]
[Result "1-0"]
[WhiteElo "2824"]
[BlackElo "2488"]
[TimeControl "180+1"]
[EndTime "8:30:30 PDT"]
[Termination "OhanyanEminChess won by resignation"]

1. e4 {[%clk 0:02:48.7]} 1... e6 {[%clk 0:02:59.7]} 2. d4 {[%clk 0:02:48.1]}
2... d5 {[%clk 0:02:59.3]} 3. Nd2 {[%clk 0:02:48.8]} 3... c5 {[%clk 0:02:57.5]}
4. Ngf3 {[%clk 0:02:45.9]} 4... Nc6 {[%clk 0:02:55.9]} 5. exd5 {[%clk
0:02:25.4]} 5... Qxd5 {[%clk 0:02:52.1]} 6. Bc4 {[%clk 0:01:30.5]} 6... Qd8
{[%clk 0:02:47.2]} 7. dxc5 {[%clk 0:01:16]} 7... Bxc5 {[%clk 0:02:44.4]} 8. Ne4
{[%clk 0:01:16.2]} 8... Qxd1+ {[%clk 0:02:36.2]} 9. Kxd1 {[%clk 0:01:17.1]} 9...
Be7 {[%clk 0:02:33.1]} 10. Bf4 {[%clk 0:01:10.1]} 10... Nf6 {[%clk 0:02:21.4]}
11. Nd6+ {[%clk 0:01:09.7]} 11... Kf8 {[%clk 0:02:21]} 12. Ng5 {[%clk
0:01:03.1]} 12... Nh5 {[%clk 0:02:04.6]} 13. Nxc8 {[%clk 0:00:44.6]} 13... Rxc8
{[%clk 0:01:57.9]} 14. Be3 {[%clk 0:00:44.2]} 14... h6 {[%clk 0:01:15.2]} 15.
Nf3 {[%clk 0:00:40.1]} 15... g5 {[%clk 0:01:14.1]} 16. Be2 {[%clk 0:00:35.1]}
16... Nf4 {[%clk 0:01:03.7]} 17. Bxf4 {[%clk 0:00:35.3]} 17... gxf4 {[%clk
0:01:04.1]} 18. c3 {[%clk 0:00:36.2]} 18... e5 {[%clk 0:00:59.6]} 19. Bd3 {[%clk
0:00:34.9]} 19... Kg7 {[%clk 0:00:49.6]} 20. Ke2 {[%clk 0:00:34.9]} 20... Rhe8
{[%clk 0:00:40.3]} 21. Be4 {[%clk 0:00:29.9]} 21... Bc5 {[%clk 0:00:27.3]} 22.
Nh4 {[%clk 0:00:28.4]} 22... Ne7 {[%clk 0:00:25.7]} 23. g3 {[%clk 0:00:28.1]}
23... a5 {[%clk 0:00:16.9]} 24. a4 {[%clk 0:00:25.8]} 24... b6 {[%clk
0:00:16.4]} 25. Rad1 {[%clk 0:00:25.7]} 25... Rcd8 {[%clk 0:00:16.5]} 26. gxf4
{[%clk 0:00:21.6]} 26... exf4 {[%clk 0:00:16.2]} 27. Kf3 {[%clk 0:00:22.3]}
27... Kf6 {[%clk 0:00:14.4]} 28. Ng2 {[%clk 0:00:20.6]} 28... Ng6 {[%clk
0:00:13.4]} 29. Bxg6 {[%clk 0:00:20.2]} 29... fxg6 {[%clk 0:00:13.6]} 30. Nxf4
{[%clk 0:00:20.8]} 30... Kf5 {[%clk 0:00:07.7]} 31. Ne2 {[%clk 0:00:17.5]} 31...
g5 {[%clk 0:00:05.6]} 32. Ng3+ {[%clk 0:00:17.9]} 32... Kg6 {[%clk 0:00:05.5]}
33. Kg2 {[%clk 0:00:15.3]} 33... Rf8 {[%clk 0:00:05.2]} 34. f3 {[%clk
0:00:15.8]} 34... h5 {[%clk 0:00:05.1]} 35. h3 {[%clk 0:00:15.3]} 35... Be3
{[%clk 0:00:04]} 36. Rhe1 {[%clk 0:00:12]} 36... Bc5 {[%clk 0:00:03.1]} 37. Ne4
{[%clk 0:00:11.5]} 37... Be7 {[%clk 0:00:02.2]} 38. Nf2 {[%clk 0:00:09]} 38...
Bc5 {[%clk 0:00:01.6]} 39. Rxd8 {[%clk 0:00:08.8]} 39... Rxd8 {[%clk 0:00:01.1]}
40. Re6+ {[%clk 0:00:09.7]} 40... Kf5 {[%clk 0:00:01]} 41. Re2 {[%clk
0:00:10.6]} 41... Bxf2 {[%clk 0:00:01.3]} 42. Kxf2 {[%clk 0:00:11]} 42... Rd3
{[%clk 0:00:01.8]} 43. Re3 {[%clk 0:00:09.8]} 43... Rd2+ {[%clk 0:00:01.8]} 44.
Re2 {[%clk 0:00:10.4]} 44... Rd3 {[%clk 0:00:02.3]} 45. Kg2 {[%clk 0:00:08.2]}
45... h4 {[%clk 0:00:02]} 46. Kf2 {[%clk 0:00:08.2]} 46... Rd1 {[%clk
0:00:02.4]} 47. Rc2 {[%clk 0:00:04.3]} 47... Rh1 {[%clk 0:00:02.6]} 48. Kg2
{[%clk 0:00:05]} 48... Rd1 {[%clk 0:00:02.9]} 49. Re2 {[%clk 0:00:05.3]} 49...
Rc1 {[%clk 0:00:02.8]} 50. Rd2 {[%clk 0:00:05.6]} 50... Re1 {[%clk 0:00:02.9]}
51. Rd5+ {[%clk 0:00:03.5]} 51... Kf4 {[%clk 0:00:02.6]} 52. Rd4+ {[%clk
0:00:04.2]} 52... Kf5 {[%clk 0:00:03.1]} 53. Kf2 {[%clk 0:00:02.7]} 53... Rh1
{[%clk 0:00:02.4]} 54. Rd6 {[%clk 0:00:02.9]} 54... Rb1 {[%clk 0:00:01]} 55.
Rxb6 {[%clk 0:00:03.2]} 55... Rc1 {[%clk 0:00:01.3]} 56. Rb8 {[%clk 0:00:01.9]}
56... Rc2+ {[%clk 0:00:01.5]} 57. Ke3 {[%clk 0:00:01.7]} 57... Rh2 {[%clk
0:00:01.4]} 58. Rb5+ {[%clk 0:00:02.6]} 58... Kg6 {[%clk 0:00:01.3]} 59. Rxa5
{[%clk 0:00:02.6]} 59... Rxh3 {[%clk 0:00:01.8]} 60. Ra8 {[%clk 0:00:02.8]}
60... Rh1 {[%clk 0:00:01.9]} 61. a5 {[%clk 0:00:02.8]} 61... h3 {[%clk
0:00:02.4]} 62. Kf2 {[%clk 0:00:03.2]} 62... Rh2+ {[%clk 0:00:02.1]} 63. Kg3
{[%clk 0:00:03.4]} 63... Rxb2 {[%clk 0:00:02.6]} 64. Kxh3 {[%clk 0:00:03.5]}
64... Rb3 {[%clk 0:00:03]} 65. Rc8 {[%clk 0:00:02.5]} 65... Ra3 {[%clk 0:00:03]}
66. Rc5 {[%clk 0:00:02.8]} 66... Kf6 {[%clk 0:00:03]} 67. Kg4 {[%clk 0:00:02.7]}
67... Ra4+ {[%clk 0:00:03.2]} 68. Kg3 {[%clk 0:00:02.9]} 68... Kg6 {[%clk
0:00:03]} 69. Rc6+ {[%clk 0:00:03.1]} 69... Kf5 {[%clk 0:00:03.3]} 70. a6 {[%clk
0:00:04]} 70... Ra5 {[%clk 0:00:03]} 71. c4 {[%clk 0:00:04.1]} 71... Ke5 {[%clk
0:00:03.3]} 72. Kg4 {[%clk 0:00:02.7]} 72... Kd4 {[%clk 0:00:03.4]} 73. c5
{[%clk 0:00:03.3]} 73... Kd5 {[%clk 0:00:02.8]} 74. Rc8 {[%clk 0:00:03.8]} 74...
Rxa6 {[%clk 0:00:02.9]} 75. Kxg5 {[%clk 0:00:04.6]} 75... Rd6 {[%clk 0:00:02]}
76. cxd6 {[%clk 0:00:04.6]} 1-0

[Event "Early-Titled-Tuesday-Blitz-May-28-2024"]
[Site "Chess.com"]
[Date "2024.05.28"]
[Round "3"]
[White "kecalk"]
[Black "FMStan15"]
[Result "1-0"]
[WhiteElo "2551"]
[BlackElo "2150"]
[TimeControl "180+1"]
[EndTime "8:30:41 PDT"]
[Termination "kecalk won on time"]

1. e4 {[%clk 0:02:30.7]} 1... e6 {[%clk 0:02:58.6]} 2. d4 {[%clk 0:02:30.7]}
2... d5 {[%clk 0:02:58.9]} 3. Nc3 {[%clk 0:02:31]} 3... Bb4 {[%clk 0:02:58]} 4.
exd5 {[%clk 0:02:31.3]} 4... exd5 {[%clk 0:02:57.8]} 5. Bd3 {[%clk 0:02:31.8]}
5... Nc6 {[%clk 0:02:57.7]} 6. Ne2 {[%clk 0:02:31.5]} 6... Bg4 {[%clk
0:02:57.8]} 7. f3 {[%clk 0:02:29.8]} 7... Bh5 {[%clk 0:02:57.4]} 8. a3 {[%clk
0:02:28.7]} 8... Bxc3+ {[%clk 0:02:55.2]} 9. bxc3 {[%clk 0:02:28.4]} 9... Nf6
{[%clk 0:02:55.5]} 10. Bg5 {[%clk 0:02:27]} 10... h6 {[%clk 0:02:55.4]} 11. Bh4
{[%clk 0:02:26.3]} 11... Bg6 {[%clk 0:02:53.7]} 12. O-O {[%clk 0:02:23.5]} 12...
Bxd3 {[%clk 0:02:52.9]} 13. cxd3 {[%clk 0:02:23.4]} 13... O-O {[%clk 0:02:52.3]}
14. f4 {[%clk 0:02:16.3]} 14... Qd6 {[%clk 0:02:50.5]} 15. Ng3 {[%clk
0:02:16.2]} 15... Ne7 {[%clk 0:02:43.1]} 16. f5 {[%clk 0:02:12.3]} 16... c5
{[%clk 0:02:28.8]} 17. Qf3 {[%clk 0:02:04.6]} 17... cxd4 {[%clk 0:02:25.6]} 18.
cxd4 {[%clk 0:02:05.5]} 18... Nc6 {[%clk 0:02:24.5]} 19. Bxf6 {[%clk 0:01:48.8]}
19... Qxf6 {[%clk 0:02:22.1]} 20. Nh5 {[%clk 0:01:39.5]} 20... Qxd4+ {[%clk
0:02:19.6]} 21. Kh1 {[%clk 0:01:40.2]} 21... Ne5 {[%clk 0:01:53]} 22. Qg3 {[%clk
0:01:39.7]} 22... Qg4 {[%clk 0:01:53.2]} 23. Qxe5 {[%clk 0:01:34.3]} 23... Qxh5
{[%clk 0:01:53.4]} 24. Qxd5 {[%clk 0:01:34.3]} 24... b6 {[%clk 0:01:33.6]} 25.
Rf3 {[%clk 0:01:29]} 25... Rad8 {[%clk 0:01:33.2]} 26. Qe4 {[%clk 0:01:28.4]}
26... Qg5 {[%clk 0:01:28.3]} 27. f6 {[%clk 0:01:23.7]} 27... Rfe8 {[%clk
0:01:26]} 28. Qb7 {[%clk 0:01:11.5]} 28... Qe5 {[%clk 0:00:58.6]} 29. Raf1
{[%clk 0:01:05.7]} 29... g6 {[%clk 0:00:55.2]} 30. Rg3 {[%clk 0:01:01.2]} 30...
g5 {[%clk 0:00:50.7]} 31. Qxa7 {[%clk 0:00:34.3]} 31... Qxf6 {[%clk 0:00:48.4]}
32. Rgf3 {[%clk 0:00:31.3]} 32... Qe7 {[%clk 0:00:45.6]} 33. Qxb6 {[%clk
0:00:26.4]} 33... Rf8 {[%clk 0:00:39.2]} 34. Qxh6 {[%clk 0:00:25.1]} 34... Rd6
{[%clk 0:00:38.4]} 35. Qh5 {[%clk 0:00:22]} 35... Rg6 {[%clk 0:00:37.8]} 36. h3
{[%clk 0:00:19.1]} 36... Kg7 {[%clk 0:00:37.2]} 37. Rf5 {[%clk 0:00:18.3]} 37...
Qxa3 {[%clk 0:00:33.1]} 38. Rxg5 {[%clk 0:00:16.1]} 38... Qxd3 {[%clk
0:00:29.7]} 39. Rxg6+ {[%clk 0:00:02.8]} 39... fxg6 {[%clk 0:00:28.9]} 40. Qd1
{[%clk 0:00:02.1]} 40... Qxd1 {[%clk 0:00:28.6]} 41. Rxd1 {[%clk 0:00:02.3]}
41... Rf6 {[%clk 0:00:26.5]} 42. Kh2 {[%clk 0:00:02.8]} 42... g5 {[%clk
0:00:25.9]} 43. Kg3 {[%clk 0:00:03.3]} 43... Kg6 {[%clk 0:00:26.3]} 44. Rd4
{[%clk 0:00:03.9]} 44... Ra6 {[%clk 0:00:26.1]} 45. Rd5 {[%clk 0:00:04.4]} 45...
Ra3+ {[%clk 0:00:24.2]} 46. Kh2 {[%clk 0:00:05.3]} 46... Ra2 {[%clk 0:00:23.8]}
47. Rd6+ {[%clk 0:00:05.8]} 47... Kf5 {[%clk 0:00:22.3]} 48. Rd5+ {[%clk
0:00:06.7]} 48... Kg6 {[%clk 0:00:22.3]} 49. Rd4 {[%clk 0:00:07.3]} 49... Kf5
{[%clk 0:00:22.4]} 50. Rc4 {[%clk 0:00:07.2]} 50... Kg6 {[%clk 0:00:21.2]} 51.
Rg4 {[%clk 0:00:07.6]} 51... Kf5 {[%clk 0:00:20.8]} 52. Rg3 {[%clk 0:00:08.2]}
52... Kf6 {[%clk 0:00:18.3]} 53. Rf3+ {[%clk 0:00:08.7]} 53... Kg6 {[%clk
0:00:18.3]} 54. Kg3 {[%clk 0:00:09.6]} 54... Kh5 {[%clk 0:00:16.3]} 55. Rb3
{[%clk 0:00:09.7]} 55... Kg6 {[%clk 0:00:16.3]} 56. Rb4 {[%clk 0:00:09.1]} 56...
Kf5 {[%clk 0:00:16.2]} 57. Rb5+ {[%clk 0:00:08.8]} 57... Kg6 {[%clk 0:00:16.3]}
58. Rb4 {[%clk 0:00:08.8]} 58... Kf5 {[%clk 0:00:15.6]} 59. Rb3 {[%clk 0:00:09]}
59... Kg6 {[%clk 0:00:15.2]} 60. Re3 {[%clk 0:00:09]} 60... Kf5 {[%clk
0:00:15.3]} 61. Kf3 {[%clk 0:00:09.4]} 61... Ra1 {[%clk 0:00:12]} 62. Rb3 {[%clk
0:00:06.7]} 62... Rf1+ {[%clk 0:00:10.2]} 63. Kg3 {[%clk 0:00:07]} 63... Rf4
{[%clk 0:00:07.9]} 64. Rf3 {[%clk 0:00:06.2]} 64... Ke5 {[%clk 0:00:00.5]} 65.
Rxf4 {[%clk 0:00:06.3]} 65... gxf4+ {[%clk 0:00:00.4]} 66. Kf3 {[%clk
0:00:07.2]} 66... Kf5 {[%clk 0:00:01]} 67. h4 {[%clk 0:00:08.1]} 67... Ke5
{[%clk 0:00:00.6]} 68. h5 {[%clk 0:00:08.6]} 68... Kf5 {[%clk 0:00:01]} 69. h6
{[%clk 0:00:09.5]} 69... Kg6 {[%clk 0:00:01.2]} 70. Kxf4 {[%clk 0:00:10.4]}
70... Kxh6 {[%clk 0:00:01.7]} 71. Kf5 {[%clk 0:00:10.6]} 71... Kg7 {[%clk
0:00:01.2]} 72. g3 {[%clk 0:00:08.9]} 72... Kf7 {[%clk 0:00:01.4]} 73. g4 {[%clk
0:00:09.5]} 73... Kg7 {[%clk 0:00:01.6]} 74. Kg5 {[%clk 0:00:10.1]} 74... Kf7
{[%clk 0:00:01.5]} 75. Kh6 {[%clk 0:00:10.6]} 75... Kg8 {[%clk 0:00:01.4]} 76.
g5 {[%clk 0:00:09.6]} 76... Kh8 {[%clk 0:00:01.6]} 77. g6 {[%clk 0:00:10.2]}
77... Kg8 {[%clk 0:00:02]} 78. g7 {[%clk 0:00:11.1]} 78... Kf7 {[%clk
0:00:02.4]} 79. Kh7 {[%clk 0:00:12]} 1-0

[Event "Early-Titled-Tuesday-Blitz-May-28-2024"]
[Site "Chess.com"]
[Date "2024.05.28"]
[Round "3"]
[White "zverr1"]
[Black "PonyQueen07"]
[Result "1-0"]
[WhiteElo "2630"]
[BlackElo "2050"]
[TimeControl "180+1"]
[EndTime "8:30:47 PDT"]
[Termination "zverr1 won by checkmate"]

1. e4 {[%clk 0:02:58]} 1... c5 {[%clk 0:02:59.8]} 2. Nf3 {[%clk 0:02:57.5]} 2...
Nc6 {[%clk 0:02:59.6]} 3. d4 {[%clk 0:02:57.7]} 3... cxd4 {[%clk 0:02:59.3]} 4.
Nxd4 {[%clk 0:02:58.6]} 4... Nf6 {[%clk 0:02:59.1]} 5. Nc3 {[%clk 0:02:59.1]}
5... e5 {[%clk 0:02:59.1]} 6. Ndb5 {[%clk 0:02:59.7]} 6... d6 {[%clk 0:02:58.8]}
7. Bg5 {[%clk 0:03:00.1]} 7... a6 {[%clk 0:02:59.3]} 8. Na3 {[%clk 0:03:00.1]}
8... b5 {[%clk 0:02:59.4]} 9. Nd5 {[%clk 0:03:00.8]} 9... Be7 {[%clk 0:02:59.4]}
10. Bxf6 {[%clk 0:03:01.6]} 10... Bxf6 {[%clk 0:03:00]} 11. c3 {[%clk
0:03:02.5]} 11... O-O {[%clk 0:02:56.3]} 12. Nc2 {[%clk 0:03:03.2]} 12... Bg5
{[%clk 0:02:53]} 13. h4 {[%clk 0:03:02.5]} 13... Bh6 {[%clk 0:02:51.1]} 14. g3
{[%clk 0:03:03]} 14... f5 {[%clk 0:02:40.3]} 15. exf5 {[%clk 0:02:59.1]} 15...
Bxf5 {[%clk 0:02:39.6]} 16. Bg2 {[%clk 0:02:55.5]} 16... Rc8 {[%clk 0:02:27.3]}
17. Nce3 {[%clk 0:02:49.4]} 17... Bxe3 {[%clk 0:02:24.3]} 18. Nxe3 {[%clk
0:02:50.3]} 18... Be6 {[%clk 0:02:10.8]} 19. O-O {[%clk 0:02:50.4]} 19... Ne7
{[%clk 0:02:07.5]} 20. Qd2 {[%clk 0:02:33.2]} 20... Qd7 {[%clk 0:01:43.6]} 21.
Rad1 {[%clk 0:02:28.2]} 21... Rcd8 {[%clk 0:01:32.4]} 22. Nd5 {[%clk 0:02:24.7]}
22... Nxd5 {[%clk 0:01:27.7]} 23. Bxd5 {[%clk 0:02:25.6]} 23... Kh8 {[%clk
0:01:21.9]} 24. Rfe1 {[%clk 0:02:17.5]} 24... Bg4 {[%clk 0:00:58.5]} 25. Rc1
{[%clk 0:02:17.4]} 25... Qf5 {[%clk 0:00:20.6]} 26. Qe3 {[%clk 0:02:00]} 26...
Bf3 {[%clk 0:00:16.6]} 27. Bxf3 {[%clk 0:01:56.2]} 27... Qxf3 {[%clk 0:00:16.2]}
28. Rcd1 {[%clk 0:01:55.2]} 28... Qxe3 {[%clk 0:00:08.5]} 29. Rxe3 {[%clk
0:01:56.1]} 29... g6 {[%clk 0:00:07.6]} 30. Red3 {[%clk 0:01:55.4]} 30... Rf6
{[%clk 0:00:06.2]} 31. Rd5 {[%clk 0:01:56.1]} 31... Re6 {[%clk 0:00:05.2]} 32.
a4 {[%clk 0:01:50.5]} 32... bxa4 {[%clk 0:00:03.5]} 33. Ra5 {[%clk 0:01:51.4]}
33... Rb8 {[%clk 0:00:02.9]} 34. Rd2 {[%clk 0:01:51.3]} 34... d5 {[%clk
0:00:01.8]} 35. Raxd5 {[%clk 0:01:47.4]} 35... Reb6 {[%clk 0:00:01.9]} 36. Rxe5
{[%clk 0:01:46.3]} 36... Rxb2 {[%clk 0:00:02.4]} 37. Rd7 {[%clk 0:01:31.5]}
37... Rb1+ {[%clk 0:00:02.3]} 38. Kg2 {[%clk 0:01:30.4]} 38... a3 {[%clk
0:00:02.8]} 39. Ra5 {[%clk 0:01:22.9]} 39... Ra1 {[%clk 0:00:02.7]} 40. Rxa6
{[%clk 0:01:20.6]} 40... a2 {[%clk 0:00:02.7]} 41. Raa7 {[%clk 0:01:18.6]} 41...
h6 {[%clk 0:00:03.1]} 42. c4 {[%clk 0:01:17.2]} 42... Rc8 {[%clk 0:00:02.5]} 43.
c5 {[%clk 0:01:17]} 43... Kg8 {[%clk 0:00:02.9]} 44. c6 {[%clk 0:01:16.7]} 44...
Rc1 {[%clk 0:00:03.2]} 45. Rxa2 {[%clk 0:01:06.3]} 45... R1xc6 {[%clk
0:00:03.7]} 46. Raa7 {[%clk 0:01:02.4]} 46... h5 {[%clk 0:00:03.8]} 47. Rg7+
{[%clk 0:00:59.4]} 47... Kf8 {[%clk 0:00:03.8]} 48. Rh7 {[%clk 0:00:58.6]} 48...
Kg8 {[%clk 0:00:04.3]} 49. Rhd7 {[%clk 0:00:50.5]} 49... Kf8 {[%clk 0:00:02.7]}
50. Rab7 {[%clk 0:00:43.2]} 50... Kg8 {[%clk 0:00:02.7]} 51. Rh7 {[%clk
0:00:42.5]} 51... Rd6 {[%clk 0:00:02]} 52. Rbg7+ {[%clk 0:00:38.4]} 52... Kf8
{[%clk 0:00:02.3]} 53. Rb7 {[%clk 0:00:37.5]} 53... Kg8 {[%clk 0:00:02.5]} 54.
Rhc7 {[%clk 0:00:27.8]} 54... Rxc7 {[%clk 0:00:01.5]} 55. Rxc7 {[%clk
0:00:28.7]} 55... Rf6 {[%clk 0:00:01.6]} 56. Rd7 {[%clk 0:00:27.6]} 56... Re6
{[%clk 0:00:01.8]} 57. Ra7 {[%clk 0:00:26.6]} 57... Rf6 {[%clk 0:00:02.2]} 58.
Re7 {[%clk 0:00:27.3]} 58... Kf8 {[%clk 0:00:02.6]} 59. Rh7 {[%clk 0:00:28]}
59... Kg8 {[%clk 0:00:02.8]} 60. Rd7 {[%clk 0:00:28.3]} 60... Kf8 {[%clk
0:00:03.2]} 61. f3 {[%clk 0:00:23.8]} 61... Kg8 {[%clk 0:00:03.5]} 62. g4 {[%clk
0:00:23]} 62... hxg4 {[%clk 0:00:04.4]} 63. fxg4 {[%clk 0:00:23.9]} 63... Kf8
{[%clk 0:00:04.3]} 64. Kg3 {[%clk 0:00:24.2]} 64... Kg8 {[%clk 0:00:04.4]} 65.
Rd4 {[%clk 0:00:21.8]} 65... Kf8 {[%clk 0:00:04.4]} 66. Rf4 {[%clk 0:00:22.5]}
66... Kg7 {[%clk 0:00:01.9]} 67. Rxf6 {[%clk 0:00:04.9]} 67... Kxf6 {[%clk
0:00:02.8]} 68. Kf3 {[%clk 0:00:05.6]} 68... Kf7 {[%clk 0:00:02]} 69. Kf4 {[%clk
0:00:02.8]} 69... Kg7 {[%clk 0:00:02]} 70. Ke5 {[%clk 0:00:02.4]} 70... Kf7
{[%clk 0:00:01.7]} 71. g5 {[%clk 0:00:02.2]} 71... Ke7 {[%clk 0:00:02.3]} 72.
Kd5 {[%clk 0:00:02.4]} 72... Kd7 {[%clk 0:00:02.1]} 73. Kd4 {[%clk 0:00:01.5]}
73... Kd6 {[%clk 0:00:02.2]} 74. Ke4 {[%clk 0:00:02.4]} 74... Ke6 {[%clk
0:00:02.5]} 75. Kf4 {[%clk 0:00:02.9]} 75... Kf7 {[%clk 0:00:01.3]} 76. Kf3
{[%clk 0:00:02]} 76... Ke7 {[%clk 0:00:01]} 77. Ke3 {[%clk 0:00:02.3]} 77... Ke6
{[%clk 0:00:01]} 78. Ke4 {[%clk 0:00:02.5]} 78... Kd6 {[%clk 0:00:01.5]} 79. Kf4
{[%clk 0:00:01.4]} 79... Ke6 {[%clk 0:00:02]} 80. Kg4 {[%clk 0:00:01.5]} 80...
Ke5 {[%clk 0:00:02.4]} 81. h5 {[%clk 0:00:01.6]} 81... gxh5+ {[%clk 0:00:02.3]}
82. Kxh5 {[%clk 0:00:02.5]} 82... Ke6 {[%clk 0:00:02.2]} 83. Kh6 {[%clk
0:00:02.9]} 83... Kf5 {[%clk 0:00:02.2]} 84. g6 {[%clk 0:00:03.4]} 84... Kf6
{[%clk 0:00:02.6]} 85. g7 {[%clk 0:00:04.1]} 85... Kf5 {[%clk 0:00:03.3]} 86.
Kh7 {[%clk 0:00:05]} 86... Kg4 {[%clk 0:00:04.2]} 87. g8=Q+ {[%clk 0:00:05.9]}
87... Kh4 {[%clk 0:00:05]} 88. Qg7 {[%clk 0:00:06.8]} 88... Kh3 {[%clk
0:00:05.6]} 89. Qg6 {[%clk 0:00:07.5]} 89... Kh2 {[%clk 0:00:06.5]} 90. Kg7
{[%clk 0:00:08.4]} 90... Kh1 {[%clk 0:00:07.3]} 91. Kf6 {[%clk 0:00:09.3]} 91...
Kh2 {[%clk 0:00:07.8]} 92. Kf5 {[%clk 0:00:10.2]} 92... Kh1 {[%clk 0:00:08.7]}
93. Kf4 {[%clk 0:00:11.1]} 93... Kh2 {[%clk 0:00:09.4]} 94. Kf3 {[%clk 0:00:12]}
94... Kh1 {[%clk 0:00:10.2]} 95. Qg2# {[%clk 0:00:12.3]} 1-0